bitfinex/quotes_SOLUSD_20260114
["timestamp","ask_amount","ask_price","bid_price","bid_amount"]
[1768357037060,0.18119303,146.03,145.99,7.53389139]
[1768357038777,3.95644288,146.03,145.99,7.53389139]
[1768357042581,0.46349396,146.0,145.96,40.55834628]
[1768357042786,6.84795602,146.03,145.95,0.65834628]
[1768357042963,3.77524985,145.98,145.95,7.50970939]
[1768357043163,3.77524985,145.98,145.94,0.65834628]
[1768357043467,3.74524986,145.98,145.94,0.65834628]
[1768357043667,3.77524985,145.97,145.94,0.65834628]
[1768357044166,23.97262534,146.0,145.93,7.71079913]
[1768357044364,3.77524985,145.97,145.94,6.85210441]
[1768357044978,0.52221999,145.98,145.94,6.85210441]
[1768357045185,3.77524985,145.97,145.94,6.85210441]
[1768357045383,4.29746984,145.98,145.94,6.85210441]
[1768357045881,4.29746984,145.98,145.93,7.71075329]
[1768357046790,3.77524985,145.97,145.93,7.71075329]
[1768357047087,0.52221999,145.98,145.93,7.71075329]
[1768357047292,3.77524985,145.97,145.93,7.71075329]
[1768357048587,7.3724772,145.98,145.93,7.71075329]
[1768357048788,3.77524985,145.97,145.93,7.71075329]
[1768357049884,3.74524986,145.97,145.93,7.71075329]
[1768357050062,7.3724772,145.98,145.89,0.65834628]
[1768357050063,0.099,145.93,145.89,0.65834628]
[1768357050268,0.099,145.93,145.9,0.65834628]
[1768357050269,3.77524985,145.93,145.9,0.65834628]
[1768357050885,3.77524985,145.94,145.9,0.65834628]
[1768357051089,12.48,145.97,145.9,7.51234469]
[1768357051291,3.77524985,145.95,145.9,7.51234469]
[1768357051486,3.77524985,145.94,145.9,7.51234469]
[1768357052491,0.099,145.98,145.92,0.65834628]
[1768357052788,4.09423764,146.0,145.94,4.43359613]
[1768357053102,3.77524985,146.0,145.95,0.65834628]
[1768357053312,7.16820599,146.01,145.95,0.65834628]
[1768357053596,3.77524985,146.0,145.95,0.65834628]
[1768357054068,7.16820599,146.01,145.95,7.5097411]
[1768357054269,3.77524985,146.0,145.96,0.65834628]
[1768357055094,3.77524985,146.0,145.95,6.85139482]
[1768357055095,0.31898779,146.03,145.98,0.68914303]
[1768357055784,3.77524985,146.04,145.99,0.68914303]
[1768357055985,3.87424985,146.04,145.99,0.68914303]
[1768357056289,10.72182686,146.04,145.99,0.68914303]
[1768357056587,6.94657701,146.04,145.99,0.68914303]
[1768357056769,10.72182686,146.04,145.99,0.68914303]
[1768357056971,3.87642773,146.02,145.98,0.68914303]
[1768357057190,4.08988166,146.01,145.96,0.68914303]
[1768357057373,3.87856227,146.0,145.96,0.68914303]
[1768357058296,3.77524985,146.0,145.96,0.68914303]
[1768357058492,10.6243918,146.01,145.96,0.68914303]
[1768357058679,3.77524985,146.01,145.97,0.68914303]
[1768357059281,5.90714996,146.01,145.97,0.68914303]
[1768357060400,5.90714996,146.01,145.98,0.68914303]
[1768357060694,13.07463404,146.02,145.98,0.68914303]
[1768357060994,6.22613775,146.02,145.98,0.68914303]
[1768357062301,6.84810495,146.03,145.98,7.53939292]
[1768357062599,13.07376009,146.04,145.99,0.68914303]
[1768357063299,23.34019332,146.08,146.02,0.68914303]
[1768357063501,23.34019332,146.08,146.03,0.68914303]
[1768357063502,17.43304336,146.08,146.03,0.68914303]
[1768357063706,5.90714996,146.09,146.04,0.68914303]
[1768357063880,6.00614996,146.09,146.04,0.68914303]
[1768357064396,6.84573151,146.08,146.04,0.68914303]
[1768357064579,6.00614996,146.09,146.04,0.68914303]
[1768357064580,6.8451974,146.09,146.04,0.68914303]
[1768357064895,5.90714996,146.07,146.02,0.68914303]
[1768357065283,6.00832784,146.08,146.02,7.53749446]
[1768357065703,6.00832784,146.08,146.03,0.68914303]
[1768357066102,6.22178177,146.07,146.01,25.92498037]
[1768357066399,6.84650143,146.06,146.02,0.68914303]
[1768357066604,12.85696381,146.06,146.0,13.44541392]
[1768357066800,12.85696381,146.06,146.0,13.16914303]
[1768357066801,0.10540448,146.04,146.0,13.16914303]
[1768357066993,5.90714996,146.05,146.0,13.16914303]
[1768357067200,5.90714996,146.05,146.01,0.68914303]
[1768357067598,6.22393787,146.04,145.99,0.68914303]
[1768357068604,12.75552614,146.03,145.99,0.68914303]
[1768357068819,5.90714996,146.02,145.97,0.68914303]
[1768357068996,6.22178177,146.02,145.97,0.68914303]
[1768357069515,5.90714996,146.01,145.97,0.68914303]
[1768357069690,6.22178177,146.02,145.97,0.68914303]
[1768357070406,5.90714996,146.0,145.97,0.68914303]
[1768357070590,12.85930834,146.01,145.97,0.68914303]
[1768357070986,12.75599592,146.01,145.97,0.68914303]
[1768357071608,0.10117788,146.0,145.95,0.68914303]
[1768357071992,6.00832784,146.0,145.95,0.68914303]
[1768357072505,12.85809369,146.0,145.95,0.68914303]
[1768357074310,6.01046238,145.98,145.93,13.16914303]
[1768357074510,12.86102654,145.98,145.93,13.16914303]
[1768357075008,12.86102654,145.98,145.94,0.68914303]
[1768357075204,6.95387658,145.98,145.94,0.68914303]
[1768357076115,6.85056416,145.98,145.94,0.68914303]
[1768357076812,0.099,145.97,145.91,0.68914303]
[1768357077018,5.90714996,145.96,145.91,0.68914303]
[1768357077198,6.00614996,145.97,145.91,0.68914303]
[1768357077394,6.22393787,145.96,145.91,0.68914303]
[1768357077911,0.10117788,145.95,145.91,0.68914303]
[1768357078317,6.00832784,145.95,145.91,0.68914303]
[1768357078816,12.86033256,145.95,145.91,0.68914303]
[1768357079612,0.31463181,145.94,145.89,0.68914303]
[1768357079915,6.01046238,145.93,145.89,0.68914303]
[1768357080119,6.01046238,145.93,145.88,0.2]
[1768357080300,6.01046238,145.93,145.88,0.88914303]
[1768357081019,17.44627196,145.97,145.89,0.68914303]
[1768357081315,17.44627196,145.97,145.88,12.9620849]
[1768357081316,6.00614996,145.96,145.91,0.68914303]
[1768357081516,0.099,145.96,145.91,0.68914303]
[1768357081721,5.90714996,145.95,145.91,0.68914303]
[1768357082021,12.85766988,145.96,145.91,0.68914303]
[1768357082525,5.90714996,145.98,145.93,0.68914303]
[1768357082716,12.75754266,145.98,145.93,0.68914303]
[1768357083020,5.90714996,145.97,145.93,0.68914303]
[1768357084524,0.31463181,145.95,145.9,0.68914303]
[1768357084823,6.22178177,145.95,145.9,0.68914303]
[1768357085425,24.29657039,145.97,145.91,0.66660483]
[1768357085627,15.68575423,145.96,145.91,0.66660483]
[1768357086119,5.09937355,145.95,145.91,0.66660483]
[1768357086301,15.68575423,145.96,145.91,0.66660483]
[1768357086503,5.09909232,145.95,145.91,0.66660483]
[1768357086703,22.5371521,145.96,145.91,0.66660483]
[1768357086905,5.09909232,145.95,145.91,0.66660483]
[1768357087107,22.5371521,145.96,145.91,0.66660483]
[1768357087322,5.09909232,145.95,145.91,0.66660483]
[1768357087625,22.5371521,145.96,145.91,0.66660483]
[1768357087828,5.09893776,145.95,145.91,0.66660483]
[1768357088126,22.5371521,145.96,145.91,0.66660483]
[1768357088303,5.09893618,145.95,145.91,0.66660483]
[1768357088506,22.5371521,145.96,145.91,0.66660483]
[1768357088721,5.0982547,145.95,145.91,0.66660483]
[1768357088922,22.5371521,145.96,145.91,0.66660483]
[1768357089121,5.0982547,145.95,145.91,0.66660483]
[1768357089419,22.5371521,145.96,145.91,0.66660483]
[1768357090608,6.85139787,145.96,145.91,0.66660483]
[1768357090926,22.53761096,145.95,145.91,0.66660483]
[1768357092437,15.68575423,145.95,145.91,0.66660483]
[1768357093837,22.5374978,145.95,145.91,0.66660483]
[1768357094918,6.8511921,145.96,145.91,0.66660483]
[1768357095235,15.68575423,145.95,145.91,0.66660483]
[1768357096230,6.8511921,145.96,145.91,0.66660483]
[1768357096537,15.68575423,145.95,145.91,0.66660483]
[1768357097640,22.63594633,145.96,145.91,0.66660483]
[1768357098121,6.8511921,145.96,145.91,0.66660483]
[1768357098320,22.53694633,145.96,145.91,0.66660483]
[1768357099545,22.85373424,145.96,145.91,0.66660483]
[1768357103352,7.16798001,145.96,145.92,0.72298972]
[1768357103740,22.85373424,145.96,145.92,0.72298972]
[1768357104043,15.68575423,146.01,145.96,0.72298972]
[1768357104226,0.31678791,146.0,145.96,0.72298972]
[1768357104541,0.10117788,145.99,145.93,0.72298972]
[1768357104739,16.00038604,145.98,145.94,12.5]
[1768357104922,0.31463181,145.98,145.94,12.5]
[1768357105118,16.00038604,145.98,145.94,12.5]
[1768357105536,16.00038604,145.98,145.93,0.72298972]
[1768357105834,22.85099937,145.98,145.93,0.72298972]
[1768357106147,7.16524514,145.98,145.93,0.72298972]
[1768357106315,7.16524514,145.98,145.93,7.57558644]
[1768357106641,7.16524514,145.98,145.94,0.72298972]
[1768357106824,22.85099937,145.98,145.94,0.72298972]
[1768357107339,13.07478761,145.98,145.94,0.72298972]
[1768357107724,5.90954247,145.97,145.94,0.72298972]
[1768357107920,7.16524514,145.98,145.94,0.72298972]
[1768357108334,13.07478761,145.98,145.94,0.72298972]
[1768357109016,7.16524514,145.98,145.94,0.72298972]
[1768357115249,13.07478761,145.98,145.94,0.72298972]
[1768357116331,0.10331242,145.97,145.91,6.35509151]
[1768357116663,23.97624697,145.98,145.9,0.68078324]
[1768357116664,6.01494695,145.94,145.9,0.68078324]
[1768357117334,6.00854247,145.96,145.91,0.68078324]
[1768357117538,5.11985989,145.95,145.91,0.68078324]
[1768357117757,6.00854247,145.96,145.91,0.68078324]
[1768357118050,17.88113833,145.95,145.91,0.68078324]
[1768357118229,12.76120399,145.95,145.91,0.68078324]
[1768357118436,13.0779919,145.95,145.91,0.68078324]
[1768357118851,6.22417428,145.93,145.89,0.68078324]
[1768357119157,0.31463181,145.93,145.89,0.68078324]
[1768357120054,10.95210182,145.93,145.89,0.68078324]
[1768357122052,6.85301775,145.93,145.89,0.68078324]
[1768357125436,4.10344005,145.96,145.91,0.68078324]
[1768357125742,10.95499483,145.96,145.91,0.68078324]
[1768357126459,7.17054257,145.96,145.91,0.68078324]
[1768357126652,10.95499483,145.96,145.91,0.68078324]
[1768357128064,3.78445226,145.95,145.91,0.68078324]
[1768357129359,6.85155478,145.96,145.91,0.68078324]
[1768357129562,10.63600704,145.96,145.91,0.68078324]
[1768357130066,10.73500704,145.96,145.91,0.68078324]
[1768357131164,27.8629873,145.96,145.91,0.68078324]
[1768357131553,4.10124017,145.95,145.91,0.68078324]
[1768357131855,3.78445226,145.95,145.91,0.68078324]
[1768357134365,10.63639404,145.95,145.91,0.68078324]
[1768357136686,10.46456296,146.02,145.92,0.68078324]
[1768357136972,4.10124017,145.98,145.93,0.68078324]
[1768357137488,0.10117788,145.97,145.93,0.68078324]
[1768357137859,3.78445226,145.97,145.93,0.68078324]
[1768357138983,7.1696248,145.98,145.94,0.68078324]
[1768357139171,10.95407706,145.98,145.94,0.68078324]
[1768357139761,10.63508927,145.98,145.94,0.68078324]
[1768357139961,6.85063701,145.98,145.94,0.68078324]
[1768357140172,10.63508927,145.98,145.94,0.68078324]
[1768357141874,3.78445226,145.98,145.94,0.68078324]
[1768357142065,3.78445226,145.98,145.95,0.68078324]
[1768357142881,10.63472629,145.98,145.95,0.68078324]
[1768357143083,4.10124017,145.97,145.93,13.18078324]
[1768357143958,4.10124017,145.97,145.94,0.68078324]
[1768357144165,10.95197142,145.97,145.94,0.68078324]
[1768357144563,3.88563014,145.96,145.93,12.5]
[1768357144869,3.88563014,145.96,145.92,0.68078324]
[1768357146088,10.73709348,145.96,145.92,0.68078324]
[1768357147562,6.95264122,145.96,145.92,0.68078324]
[1768357147763,10.73709348,145.96,145.92,0.68078324]
[1768357148985,6.95264122,145.96,145.92,0.68078324]
[1768357149189,10.6359156,145.96,145.92,0.68078324]
[1768357150680,0.31678791,145.95,145.91,0.68465619]
[1768357150882,10.6359156,145.96,145.91,0.68465619]
[1768357151098,10.7349156,145.96,145.91,0.68465619]
[1768357152194,10.7349156,145.96,145.92,0.68465619]
[1768357152709,10.63725157,145.93,145.89,0.68465619]
[1768357152997,6.8523045,145.94,145.91,0.68465619]
[1768357153378,0.31898779,145.95,145.91,0.68465619]
[1768357154301,3.88345226,145.94,145.9,0.68465619]
[1768357155175,6.95123672,145.94,145.9,0.68465619]
[1768357155376,10.73568898,145.94,145.9,0.68465619]
[1768357160979,10.63668898,145.94,145.9,0.68465619]
[1768357162580,3.78445226,145.95,145.91,0.72280578]
[1768357163177,3.88345226,145.95,145.91,0.72280578]
[1768357163891,3.78445226,145.94,145.91,0.72280578]
[1768357165010,10.6365903,145.94,145.91,0.72280578]
[1768357165310,10.95337821,145.94,145.9,0.72280578]
[1768357165613,3.88776468,145.91,145.88,0.2]
[1768357165816,0.10331242,145.91,145.88,0.2]
[1768357166689,3.88776468,145.91,145.88,0.2]
[1768357166890,3.78445226,145.91,145.88,0.92280578]
[1768357167109,7.17215297,145.92,145.88,0.92280578]
[1768357167408,10.95660523,145.92,145.88,0.92280578]
[1768357168191,4.10344005,145.92,145.88,7.77775088]
[1768357168392,0.31898779,145.92,145.88,7.77775088]
[1768357168699,4.10344005,145.92,145.88,7.77775088]
[1768357171718,0.31898779,145.92,145.88,7.77775088]
[1768357172011,3.78445226,145.9,145.88,0.2]
[1768357172203,3.78445226,145.91,145.88,0.92280578]
[1768357172408,3.78445226,145.9,145.87,0.92280578]
[1768357172716,4.10124017,145.91,145.87,0.92280578]
[1768357173113,10.95482143,145.91,145.87,0.92280578]
[1768357175015,10.63803352,145.91,145.88,0.72188166]
[1768357175907,6.85358126,145.91,145.88,0.72188166]
[1768357176107,10.63803352,145.91,145.88,0.72188166]
[1768357177614,6.85358126,145.91,145.88,0.72188166]
[1768357178223,10.63803352,145.91,145.88,0.72188166]
[1768357178821,6.85358126,145.91,145.88,0.72188166]
[1768357181038,0.31898779,145.94,145.88,0.72188166]
[1768357181326,0.31898779,145.94,145.89,0.72188166]
[1768357181327,12.76610972,145.93,145.89,0.72188166]
[1768357182108,12.86510972,145.93,145.89,0.72188166]
[1768357182721,0.31678791,145.92,145.89,0.72188166]
[1768357182927,6.01462401,145.91,145.87,13.42188166]
[1768357183127,5.98462402,145.91,145.87,13.42188166]
[1768357183809,5.98462402,145.91,145.88,0.72188166]
[1768357185432,12.7669895,145.91,145.88,0.72188166]
[1768357186225,12.8659895,145.91,145.87,0.92188166]
[1768357187208,6.85327385,145.92,145.88,0.72188166]
[1768357187414,12.76671998,145.92,145.88,0.72188166]
[1768357187928,5.91344613,145.92,145.88,0.72188166]
[1768357188128,13.05519939,145.93,145.88,0.72188166]
[1768357189308,13.05519939,145.93,145.89,0.72188166]
[1768357192526,5.91344613,145.92,145.89,0.72188166]
[1768357193427,13.05519939,145.93,145.89,0.72188166]
[1768357193626,7.14175326,145.93,145.89,0.72188166]
[1768357193824,13.05519939,145.93,145.89,0.72188166]
[1768357194736,5.91344613,145.9,145.87,0.92188166]
[1768357195436,6.20053405,145.91,145.87,0.92188166]
[1768357196033,13.05409014,145.91,145.88,0.72188166]
[1768357196420,12.76700222,145.91,145.88,0.72188166]
[1768357198222,12.86600222,145.91,145.88,0.72188166]
[1768357198530,6.95255609,145.91,145.88,0.72188166]
[1768357198715,12.86600222,145.91,145.88,0.72188166]
[1768357198912,12.86600222,145.91,145.87,0.2]
[1768357199144,5.91344613,145.89,145.87,0.001019]
[1768357199843,6.00345293,145.89,145.87,0.001019]
[1768357201044,12.85807811,145.89,145.87,0.001019]
[1768357202044,0.0900068,145.89,145.87,0.001019]
[1768357202251,5.91344613,145.89,145.87,0.001019]
[1768357203331,5.91344613,145.88,145.87,0.001019]
[1768357203539,5.88344614,145.88,145.87,0.001019]
[1768357203855,12.76805897,145.89,145.87,0.001019]
[1768357204035,5.91344613,145.91,145.87,0.72290066]
[1768357204742,0.0900068,145.92,145.87,0.72290066]
[1768357204951,5.91344613,145.9,145.87,0.72290066]
[1768357205149,6.8544794,145.89,145.87,0.72290066]
[1768357205350,5.91344613,145.88,145.87,0.001019]
[1768357205730,5.91344613,145.88,145.86,0.2]
[1768357207347,12.73863905,145.88,145.86,0.2]
[1768357208635,12.76863904,145.88,145.86,1e-08]
[1768357208830,0.0900068,145.87,145.86,1e-08]
[1768357209036,6.00345293,145.87,145.84,0.2]
[1768357209458,12.85920703,145.87,145.84,0.2]
[1768357210933,6.9457609,145.87,145.84,0.2]
[1768357211657,12.85920703,145.87,145.84,0.2]
[1768357212259,12.76920023,145.87,145.84,0.90743964]
[1768357213158,6.8557541,145.87,145.84,0.90743964]
[1768357213752,6.00345293,145.88,145.84,0.90743964]
[1768357214054,5.91344613,145.88,145.85,0.70743964]
[1768357215250,24.0757524,145.92,145.85,0.70743964]
[1768357215447,5.91344613,145.89,145.86,0.70743964]
[1768357215754,5.91344613,145.88,145.84,0.90743964]
[1768357216462,5.91344613,145.88,145.85,0.70743964]
[1768357216964,0.0900068,145.89,145.85,0.70743964]
[1768357217166,11.03076123,145.88,145.85,0.70743964]
[1768357217457,6.85539028,145.88,145.85,0.70743964]
[1768357217661,12.76883641,145.88,145.85,0.70743964]
[1768357217864,6.85539028,145.88,145.85,0.70743964]
[1768357218459,6.00345293,145.89,145.85,0.70743964]
[1768357219470,0.0900068,145.89,145.85,0.70743964]
[1768357219646,6.00345293,145.89,145.85,0.70743964]
[1768357219846,0.0900068,145.89,145.85,0.70743964]
[1768357220045,6.85494927,145.88,145.85,0.70743964]
[1768357221168,5.91344613,145.9,145.85,0.70743964]
[1768357221543,5.91344613,145.89,145.85,0.70743964]
[1768357221748,5.91344613,145.88,145.85,0.70743964]
[1768357221950,5.91344613,145.89,145.85,0.70743964]
[1768357223571,12.76803529,145.89,145.85,0.70743964]
[1768357224087,6.85458916,145.89,145.85,0.70743964]
[1768357224381,0.0900068,145.9,145.85,0.70743964]
[1768357224382,12.85765096,145.9,145.86,0.68526499]
[1768357226972,5.91344613,145.89,145.86,0.68526499]
[1768357228280,12.76835891,145.89,145.86,0.68526499]
[1768357229988,5.91344613,145.9,145.87,0.68526499]
[1768357231475,5.91344613,145.91,145.87,0.68526499]
[1768357232789,12.76736185,145.91,145.87,0.68526499]
[1768357233770,5.91344613,145.9,145.87,0.68526499]
[1768357234789,6.85421929,145.9,145.87,0.68526499]
[1768357234980,12.76766542,145.9,145.87,0.68526499]
[1768357238792,6.00345293,145.91,145.87,0.68526499]
[1768357238977,5.12056764,145.9,145.87,0.68526499]
[1768357239182,6.00345293,145.91,145.87,0.68526499]
[1768357239480,5.12056764,145.9,145.87,0.68526499]
[1768357239686,6.00345293,145.91,145.87,0.68526499]
[1768357239888,5.12179414,145.9,145.87,0.68526499]
[1768357240096,6.00345293,145.91,145.87,0.68526499]
[1768357240283,5.12179414,145.9,145.87,0.68526499]
[1768357240487,6.00345293,145.91,145.87,0.68526499]
[1768357240786,5.1227474,145.9,145.87,0.68526499]
[1768357240969,6.85400959,145.9,145.87,0.68526499]
[1768357241175,12.76745572,145.9,145.87,0.68526499]
[1768357242091,5.12404124,145.89,145.87,0.68526499]
[1768357242297,12.76745572,145.9,145.87,0.68526499]
[1768357242491,5.12530817,145.89,145.87,0.68526499]
[1768357242695,12.76745572,145.9,145.87,0.68526499]
[1768357242885,5.12530817,145.89,145.87,0.68526499]
[1768357243087,12.76745572,145.9,145.87,0.68526499]
[1768357243286,5.12530817,145.89,145.87,0.68526499]
[1768357243599,6.85400959,145.9,145.87,0.68526499]
[1768357243799,5.12680007,145.89,145.87,0.68526499]
[1768357244101,6.85400959,145.9,145.87,0.68526499]
[1768357244306,5.12680164,145.89,145.87,0.68526499]
[1768357244597,6.85400959,145.9,145.87,0.68526499]
[1768357244804,5.12711898,145.89,145.87,0.68526499]
[1768357244981,6.85400959,145.9,145.87,0.68526499]
[1768357245184,5.12614153,145.89,145.87,0.68526499]
[1768357245384,6.85400959,145.9,145.87,0.68526499]
[1768357245682,5.12625268,145.89,145.87,0.68526499]
[1768357245878,6.85400959,145.9,145.87,0.68526499]
[1768357246079,5.12607467,145.89,145.87,0.68526499]
[1768357246294,6.85400959,145.9,145.87,0.68526499]
[1768357246487,5.12554987,145.89,145.87,0.68526499]
[1768357246695,6.85400959,145.9,145.87,0.68526499]
[1768357246896,5.12518576,145.89,145.87,0.68526499]
[1768357247194,6.85400959,145.9,145.87,0.68526499]
[1768357247497,11.97976836,145.89,145.87,0.68526499]
[1768357247701,6.8545826,145.89,145.87,0.68526499]
[1768357249403,3.87600513,145.91,145.87,0.68526499]
[1768357249584,5.12540114,145.9,145.87,0.68526499]
[1768357249784,5.12540114,145.89,145.87,0.68526499]
[1768357250084,3.87600513,145.91,145.87,0.68526499]
[1768357250301,5.12539799,145.9,145.87,0.68526499]
[1768357250601,5.12539799,145.89,145.87,0.68526499]
[1768357250788,3.87600513,145.91,145.87,0.68526499]
[1768357250993,5.12558593,145.9,145.87,0.68526499]
[1768357251195,5.12558593,145.89,145.87,0.68526499]
[1768357251396,3.87600513,145.91,145.87,0.68526499]
[1768357251588,6.8544794,145.89,145.87,0.68526499]
[1768357252702,6.8544794,145.89,145.85,23.14233492]
[1768357252703,6.8544794,145.89,145.85,12.5]
[1768357252892,6.8544794,145.89,145.86,0.71223923]
[1768357254507,0.0900068,145.9,145.86,0.71223923]
[1768357254694,5.12816685,145.89,145.86,0.71223923]
[1768357254895,3.87600513,145.9,145.86,0.71223923]
[1768357255092,5.12816842,145.89,145.86,0.71223923]
[1768357255292,3.87600513,145.9,145.86,0.71223923]
[1768357255492,5.12865302,145.89,145.86,0.71223923]
[1768357255692,3.87600513,145.9,145.86,0.71223923]
[1768357255985,5.12865302,145.89,145.86,0.71223923]
[1768357256198,0.0900068,145.9,145.86,0.71223923]
[1768357256402,5.12868268,145.89,145.86,0.71223923]
[1768357256607,6.94401639,145.9,145.86,0.71223923]
[1768357256809,5.1292313,145.89,145.86,0.71223923]
[1768357256992,6.94401639,145.9,145.86,0.71223923]
[1768357257194,5.12919326,145.89,145.86,0.71223923]
[1768357257392,6.94401639,145.9,145.86,0.71223923]
[1768357257613,5.12979891,145.89,145.86,0.71223923]
[1768357257815,6.94401639,145.9,145.86,0.71223923]
[1768357257995,11.98459023,145.89,145.86,0.71223923]
[1768357258316,5.13049827,145.88,145.86,0.71223923]
[1768357258608,6.85478975,145.89,145.86,0.71223923]
[1768357258911,5.13049827,145.88,145.86,0.71223923]
[1768357259212,6.85374284,145.91,145.87,0.71223923]
[1768357259716,6.94374964,145.91,145.87,0.71223923]
[1768357260590,6.85374284,145.91,145.87,0.71223923]
[1768357260915,6.94374964,145.91,145.87,0.71223923]
[1768357262013,17.13311273,145.92,145.87,0.71223923]
[1768357262014,24.0761897,145.92,145.87,0.71223923]
[1768357262218,6.85307017,145.92,145.89,0.71223923]
[1768357262400,5.12795905,145.91,145.88,0.71223923]
[1768357262715,3.87600513,145.89,145.84,45.84978927]
[1768357263014,0.0900068,145.87,145.84,0.91223923]
[1768357265641,6.945426,145.87,145.84,0.91223923]
[1768357266131,6.945426,145.87,145.84,0.2]
[1768357266525,10.73142433,145.87,145.84,0.2]
[1768357267642,27.86997235,145.87,145.84,0.2]
[1768357268242,0.0900068,145.87,145.84,0.2]
[1768357268444,3.78599833,145.88,145.84,1e-08]
[1768357268445,0.0900068,145.85,145.84,1e-08]
[1768357268620,3.87600513,145.85,145.84,1e-08]
[1768357268825,3.37600513,145.85,145.84,1e-08]
[1768357269030,3.78599833,145.86,145.84,1e-08]
[1768357270226,6.85635927,145.85,145.84,1e-08]
[1768357272643,6.85635927,145.85,145.83,0.2]
[1768357273319,6.82635928,145.85,145.83,0.2]
[1768357273635,10.61235761,145.85,145.83,0.2]
[1768357274232,6.82635928,145.85,145.83,0.2]
[1768357274834,10.61235761,145.85,145.83,0.2]
[1768357277733,23.99428492,145.87,145.83,0.86379462]
[1768357277934,3.78599833,145.85,145.83,0.86379462]
[1768357278141,23.99428492,145.87,145.83,0.86379462]
[1768357278346,8.9061425,145.86,145.83,0.86379462]
[1768357278646,3.78599833,145.85,145.83,0.86379462]
[1768357280126,10.64237351,145.85,145.83,0.86379462]
[1768357282049,3.78599833,145.84,145.83,0.86379462]
[1768357282730,3.78599833,145.84,145.82,0.2]
[1768357282926,3.78599833,145.83,145.8,0.86379462]
[1768357283132,3.78599833,145.82,145.8,0.86379462]
[1768357283327,3.75599834,145.82,145.8,0.86379462]
[1768357283721,3.75599834,145.82,145.8,0.2]
[1768357283941,3.78599833,145.81,145.78,0.66379462]
[1768357284251,10.64470889,145.8,145.77,0.66379462]
[1768357284438,10.6147089,145.8,145.77,0.66379462]
[1768357284637,3.78599833,145.79,145.77,0.66379462]
[1768357285246,6.82871057,145.8,145.77,0.66379462]
[1768357290144,107.98599833,145.88,145.8,0.66379462]
[1768357290340,3.78599833,145.85,145.8,0.66379462]
[1768357290540,5.10830654,145.87,145.81,4.44979295]
[1768357290541,6.8554192,145.87,145.81,4.44979295]
[1768357290853,10.64141753,145.87,145.82,0.66379462]
[1768357291549,6.8554192,145.87,145.82,0.66379462]
[1768357291729,10.64141753,145.87,145.82,0.66379462]
[1768357294253,6.8554192,145.87,145.82,0.66379462]
[1768357294457,10.64141753,145.87,145.82,0.66379462]
[1768357294650,6.8554192,145.87,145.82,0.66379462]
[1768357294950,10.64141753,145.87,145.82,0.66379462]
[1768357295953,6.8554192,145.87,145.82,0.66379462]
[1768357296255,10.64141753,145.87,145.82,0.66379462]
[1768357297129,6.85513789,145.88,145.83,0.6805853]
[1768357297341,10.64113622,145.88,145.83,0.6805853]
[1768357298058,10.64113622,145.88,145.84,0.6805853]
[1768357298441,6.85513789,145.88,145.84,0.6805853]
[1768357299540,3.78599833,145.88,145.84,0.6805853]
[1768357300670,10.64125413,145.88,145.84,0.6805853]
[1768357300849,3.78599833,145.87,145.84,0.6805853]
[1768357301765,10.64177369,145.87,145.83,0.6805853]
[1768357303166,3.78599833,145.86,145.83,0.6805853]
[1768357303458,5.9189822,145.86,145.83,0.6805853]
[1768357304370,12.77512082,145.86,145.83,0.6805853]
[1768357306263,12.5,145.91,145.83,0.6805853]
[1768357306264,23.98903357,145.9,145.83,0.6805853]
[1768357306459,5.9189822,145.87,145.83,0.6805853]
[1768357308363,23.98903357,145.9,145.83,0.6805853]
[1768357308560,5.11748418,145.89,145.83,0.6805853]
[1768357308765,5.9189822,145.87,145.83,0.6805853]
[1768357308964,5.9189822,145.88,145.83,0.6805853]
[1768357310278,6.8554192,145.87,145.83,0.6805853]
[1768357310478,12.7744014,145.87,145.83,0.6805853]
[1768357310976,6.8554192,145.87,145.83,0.6805853]
[1768357312478,12.7744014,145.87,145.83,0.6805853]
[1768357312679,17.13670929,145.89,145.83,0.6805853]
[1768357312680,6.85513919,145.88,145.83,0.6805853]
[1768357312860,6.85513919,145.88,145.84,0.6805853]
[1768357313267,12.77412139,145.88,145.84,0.6805853]
[1768357313466,6.85513919,145.88,145.84,0.6805853]
[1768357313673,12.77412139,145.88,145.84,0.6805853]
[1768357314064,5.9189822,145.87,145.84,0.6805853]
[1768357315077,6.85513919,145.88,145.84,0.6805853]
[1768357315280,5.9189822,145.87,145.84,0.6805853]
[1768357316286,12.77412139,145.88,145.84,0.6805853]
[1768357316466,6.85513919,145.88,145.84,0.6805853]
[1768357316664,12.77412139,145.88,145.84,0.6805853]
[1768357320487,6.85513919,145.88,145.84,0.6805853]
[1768357320893,17.13668508,145.89,145.84,0.6805853]
[1768357321066,12.77299179,145.9,145.85,0.6805853]
[1768357321277,6.85400959,145.9,145.85,0.6805853]
[1768357321584,6.85400959,145.9,145.87,0.6805853]
[1768357322886,5.9189822,145.89,145.87,0.6805853]
[1768357327310,12.77351174,145.89,145.87,0.6805853]
[1768357327507,5.9189822,145.88,145.82,0.6652414]
[1768357327705,5.9189822,145.86,145.85,13.1652414]
[1768357327881,5.88898221,145.86,145.85,13.1652414]